[Event "27th CRO-chT 1A-Men 2018"]
[Site "Biograd"]
[Date "2018.09.08"]
[Round "1.16"]
[White "Bukal, Vladimir Jr"]
[Black "Zovko, Mario"]
[Result "1-0"]
[ECO "A07"]
[WhiteElo "2380"]
[BlackElo "2328"]
[Annotator "ChessBase"]
[PlyCount "103"]
[EventDate "2018.09.08"]
[EventType "team-tourn"]
[EventCountry "CRO"]
[SourceTitle "playchess.com"]
[Source "ChessBase"]
[SourceQuality "1"]
[TimeControl "40/5400+30:1800+30"]

1. Nf3 {[%emt 0:00:30]} d5 {[%emt 0:00:30]} 2. g3 {[%emt 0:00:00]} Nf6 {[%emt 0:00:00]} 3. Bg2 {[%emt 0:00:00]} c6 {[%emt 0:00:00]} 4. O-O {[%emt 0:00:30]} Bg4 {[%emt 0:00:30]} 5. d3 {[%emt 0:01:30]} e6 {[%emt 0:01:30]} 6. Qe1 {[%emt 0:04:30]} Be7 {[%emt 0:02:30]} 7. h3 {[%emt 0:01:30]} Bh5 {[%emt 0:00:30]} 8. e4 {[%emt 0:00:00]} Bg6 {[%emt 0:03:30]} 9. Ne5 {[%emt 0:08:00]} Nfd7 {[%emt 0:03:30]} 10. Nxg6 {[%emt 0:04:30]} hxg6 {[%emt 0:00:00]} 11. Nd2 {[%emt 0:00:30]} dxe4 {[%emt 0:03:00]} 12. dxe4 {[%emt 0:02:30]} e5 {[%emt 0:01:30]} 13. Qe2 {[%emt 0:00:30]} Na6 {[%emt 0:01:30]} 14. Nf3 {[%emt 0:03:30]} Nac5 {[%emt 0:01:30]} 15. h4 {[%emt 0:01:30]} Qc7 {[%emt 0:07:30]} 16. Bh3 {[%emt 0:03:30]} Nf8 {[%emt 0:05:30]} 17. Rd1 {[%emt 0:11:30]} Rd8 {[%emt 0:11:30]} 18. Rxd8+ {[%emt 0:01:30]} Bxd8 {[%emt 0:02:30]} 19. Qc4 {[%emt 0:06:30]} Nce6 {[%emt 0:03:30]} 20. Kg2 {[%emt 0:06:30]} Qd6 {[%emt 0:06:30]} 21. Bd2 {[%emt 0:10:30]} b5 {[%emt 0:07:30]} 22. Qe2 {[%emt 0:02:30]} Nd7 {[%emt 0:05:30]} 23. a4 {[%emt 0:00:30]} a6 {[%emt 0:05:30]} 24. axb5 {[%emt 0:00:30]} axb5 {[%emt 0:00:00]} 25. Bc3 {[%emt 0:03:30]} Bc7 {[%emt 0:08:04]} 26. Ra7 {[%emt 0:12:34]} Bb8 {[%emt 0:01:32]} 27. Rb7 {[%emt 0:02:51]} O-O {[%emt 0:02:44]} 28. Ng5 {[%emt 0:00:07]} Nc7 {[%emt 0:04:45]} 29. b4 {[%emt 0:08:15]} Nf6 {[%emt 0:04:36]} 30. Qd3 {[%emt 0:00:23]} Qe7 {[%emt 0:02:06]} 31. Qe3 {[%emt 0:00:03]} Qd6 {[%emt 0:02:23]} 32. Qd3 {[%emt 0:00:48]} Qe7 {[%emt 0:00:54]} 33. Qe3 {[%emt 0:00:06]} Qd6 {[%emt 0:00:03]} 34. Qb6 {[%emt 0:01:46]} Na8 {[%emt 0:00:43]} 35. Qc5 {[%emt 0:01:09]} Qxc5 {[%emt 0:03:10]} 36. bxc5 {[%emt 0:00:30]} Bc7 {[%emt 0:00:00]} 37. Ra7 {[%emt 0:00:05]} Rd8 {[%emt 0:00:22]} 38. Ra6 {[%emt 0:00:35]} Rb8 {[%emt 0:00:21]} 39. Rxc6 {[%emt 0:00:33]} b4 {[%emt 0:00:06]} 40. Bb2 {[%emt 0:00:00]} Nh7 {[%emt 0:00:00]} 41. Ra6 {[%emt 0:04:15]} Nf8 {[%emt 0:08:11]} 42. Ra7 {[%emt 0:00:30]} Re8 {[%emt 0:01:30]} 43. Kg1 {[%emt 0:04:30]} f6 {[%emt 0:01:30]} 44. Nf3 {[%emt 0:00:00]} Rb8 {[%emt 0:00:30]} 45. Bf1 {[%emt 0:00:00]} Bd8 {[%emt 0:00:30]} 46. Bc4+ {[%emt 0:00:30]} Kh7 {[%emt 0:00:00]} 47. Nxe5 {[%emt 0:02:30]} fxe5 {[%emt 0:02:00]} 48. Bxe5 {[%emt 0:00:30]} Rc8 {[%emt 0:00:30]} 49. Rxg7+ {[%emt 0:00:30]} Kh6 {[%emt 0:00:00]} 50. Rg8 {[%emt 0:01:30]} Rxc5 {[%emt 0:01:00]} 51. Rh8+ {[%emt 0:02:30]} Nh7 {[%emt 0:00:00]} 52. Bg8 {[%emt 0:00:00]} 1-0

[Event "27th CRO-chT 1A-Men 2018"]
[Site "Biograd"]
[Date "2018.09.08"]
[Round "1.17"]
[White "Cosic, Marin"]
[Black "Dutina, Dario"]
[Result "1/2-1/2"]
[ECO "C01"]
[WhiteElo "2227"]
[BlackElo "2245"]
[Annotator "NA"]
[PlyCount "27"]
[EventDate "2018.09.08"]
[EventType "team-tourn"]
[EventCountry "CRO"]
[SourceTitle "playchess.com"]
[Source "ChessBase"]
[SourceQuality "1"]
[TimeControl "40/5400+30:1800+30"]

1. d4 {[%emt 0:00:30]} e6 {[%emt 0:00:30]} 2. e4 {[%emt 0:00:00]} d5 {[%emt 0:00:00]} 3. exd5 {[%emt 0:01:00]} exd5 {[%emt 0:00:00]} 4. Bd3 {[%emt 0:00:30]} Nf6 {[%emt 0:10:30]} 5. Ne2 {[%emt 0:05:30]} Bg4 {[%emt 0:01:30]} 6. Bg5 {[%emt 0:02:30]} Be7 {[%emt 0:05:30]} 7. c3 {[%emt 0:04:30]} O-O {[%emt 0:21:30]} 8. Qc2 {[%emt 0:01:30]} Nbd7 {[%emt 0:06:30]} 9. O-O {[%emt 0:05:30]} Re8 {[%emt 0:07:30]} 10. Ng3 {[%emt 0:06:30]} Nf8 {[%emt 0:06:30]} 11. h3 {[%emt 0:08:30]} Bc8 {[%emt 0:05:30]} 12. Nd2 {[%emt 0:01:30]} h6 $11 {[%emt 0:02:30]} 13. Bxf6 {[%emt 0:13:30]} Bxf6 {[%emt 0:00:30]} 14. Nf3 {[%emt 0:00:00]} 1/2-1/2

[Event "27th CRO-chT 1A-Men 2018"]
[Site "Biograd"]
[Date "2018.09.08"]
[Round "1.18"]
[White "Bozinovic, Bogdan"]
[Black "Zivkovic, Nikola"]
[Result "1/2-1/2"]
[ECO "E70"]
[WhiteElo "2229"]
[BlackElo "2144"]
[Annotator "NA"]
[PlyCount "99"]
[EventDate "2018.09.08"]
[EventType "team-tourn"]
[EventCountry "CRO"]
[SourceTitle "playchess.com"]
[Source "ChessBase"]
[SourceQuality "1"]
[TimeControl "40/5400+30:1800+30"]

1. d4 {[%emt 0:00:30]} Nf6 {[%emt 0:00:30]} 2. c4 {[%emt 0:00:30]} g6 {[%emt 0:00:30]} 3. Nc3 {[%emt 0:00:30]} Bg7 {[%emt 0:00:00]} 4. e4 {[%emt 0:01:30]} d6 {[%emt 0:00:00]} 5. Nge2 {[%emt 0:00:30]} O-O {[%emt 0:00:30]} 6. Ng3 {[%emt 0:00:30]} e5 {[%emt 0:02:30]} 7. d5 {[%emt 0:00:00]} a5 {[%emt 0:01:30]} 8. Be2 {[%emt 0:01:00]} Na6 {[%emt 0:01:30]} 9. h4 {[%emt 0:01:30]} h5 {[%emt 0:06:30]} 10. Bg5 {[%emt 0:01:30]} Qe8 {[%emt 0:02:30]} 11. Qd2 {[%emt 0:00:30]} Nh7 {[%emt 0:04:30]} 12. Bh6 {[%emt 0:09:30] E70: King's Indian: Miscellaneous lines with 4 e4, including 5 Nge2 and 5 Bd3 0-0 6 Nge2} (12. Be3 Bd7 13. O-O-O a4 14. Rdg1 Nc5 15. Bh6 Qe7 16. Be3 b6 17. Nf1 f5 18. exf5 gxf5 19. Ng3 f4 20. Bxc5 fxg3 {1-0 (66) Bernadskiy,V (2586)-Rahul,S (2397) Suwalki 2018}) 12... f6 {[%emt 0:03:30]} 13. Be3 $146 {[%emt 0:04:30]} ({Predecessor:} 13. Bxg7 Kxg7 14. O-O-O Nc5 15. Nb5 Qe7 16. Kb1 Rd8 17. Rhf1 a4 18. f3 Rf8 19. f4 exf4 20. Rxf4 {0-1 (51) Kretchetov,A (2335)-Matikozian,A (2430) Los Angeles 2003}) 13... Bd7 {[%emt 0:02:30]} 14. O-O-O {[%emt 0:02:30]} Nc5 {[%emt 0:02:30]} 15. f3 {[%emt 0:02:30]} a4 {[%emt 0:01:30]} 16. Nf1 {[%emt 0:08:30]} f5 {[%emt 0:05:30]} 17. Bd3 {[%emt 0:10:30]} Nxd3+ {[%emt 0:03:30]} 18. Qxd3 {[%emt 0:00:30]} f4 {[%emt 0:00:30]} 19. Bf2 {[%emt 0:00:00]} a3 {[%emt 0:01:30]} 20. b3 {[%emt 0:01:00]} Qe7 {[%emt 0:03:30]} 21. Nd2 {[%emt 0:02:30]} Rfc8 {[%emt 0:01:30]} 22. Kb1 {[%emt 0:02:30]} Kh8 {[%emt 0:06:30]} 23. Ka1 {[%emt 0:02:30]} Ra5 {[%emt 0:02:30]} 24. Ndb1 {[%emt 0:05:30]} ({Günstiger ist} 24. b4 $16 Raa8 25. c5) 24... Bf8 {[%emt 0:03:30]} 25. Be1 {[%emt 0:04:30]} Ra7 {[%emt 0:03:30]} 26. Nb5 {[%emt 0:06:30]} Bxb5 {[%emt 0:02:30]} 27. cxb5 {[%emt 0:00:00]} Nf6 {[%emt 0:04:30]} 28. Bb4 {[%emt 0:08:00]} Rca8 {[%emt 0:08:30]} 29. Rc1 {[%emt 0:01:30]} b6 {[%emt 0:01:30]} 30. Be1 {[%emt 0:04:00]} Qf7 {[%emt 0:09:02]} 31. Rc3 {[%emt 0:04:44]} Bg7 {[%emt 0:01:47]} 32. Nd2 {[%emt 0:01:42]} Qd7 {[%emt 0:04:00]} 33. Rc6 {[%emt 0:02:59]} Qf7 {[%emt 0:01:31]} 34. Kb1 {[%emt 0:00:29]} Rg8 {[%emt 0:00:38]} 35. Rc2 {[%emt 0:01:22]} Ne8 {[%emt 0:00:37]} 36. Nc4 {[%emt 0:01:43]} Qd7 {[%emt 0:00:43]} 37. Qe2 {[%emt 0:02:09]} Bf6 {[%emt 0:00:44]} 38. Nd2 {[%emt 0:03:11]} Kh7 {[%emt 0:02:01]} 39. Kc1 {[%emt 0:03:25]} Rg7 {[%emt 0:00:08]} 40. Nb1 {[%emt 0:00:00]} Qd8 {[%emt 0:00:00]} 41. Qf2 {[%emt 0:02:16]} Be7 $1 $11 {[%emt 0:02:49]} 42. Bb4 {[%emt 0:00:30]} Qa8 {[%emt 0:01:30]} 43. Be1 {[%emt 0:04:30]} Nf6 {[%emt 0:01:30]} 44. Rc4 {[%emt 0:01:30]} (44. b4 $16) 44... Qe8 {[%emt 0:02:30]} 45. Rc6 {[%emt 0:02:30]} Nd7 {[%emt 0:01:30]} 46. Qe2 {[%emt 0:03:30]} Qd8 {[%emt 0:00:30]} 47. Nc3 {[%emt 0:01:30]} (47. b4 $18) 47... Nc5 {[%emt 0:01:30]} 48. Qc2 {[%emt 0:00:30]} Qa8 {[%emt 0:02:30]} 49. Nb1 {[%emt 0:00:50]} Bd8 $16 {[%emt 0:01:30]} 50. Nc3 {[%emt 0:01:30]} 1/2-1/2

[Event "27th CRO-chT 1A-Men 2018"]
[Site "Biograd"]
[Date "2018.09.08"]
[Round "1.22"]
[White "Biti, Ozren"]
[Black "Bender, Ivan"]
[Result "1-0"]
[ECO "B23"]
[WhiteElo "2366"]
[BlackElo "2261"]
[Annotator "NA"]
[PlyCount "69"]
[EventDate "2018.09.08"]
[EventType "team-tourn"]
[EventCountry "CRO"]
[SourceTitle "playchess.com"]
[Source "ChessBase"]
[SourceQuality "1"]
[TimeControl "40/5400+30:1800+30"]

1. e4 {[%emt 0:00:30]} c5 {[%emt 0:00:30]} 2. Nc3 {[%emt 0:00:00]} Nc6 {[%emt 0:00:00]} 3. f4 {[%emt 0:04:00]} g6 {[%emt 0:02:00]} 4. Nf3 {[%emt 0:00:00]} Bg7 {[%emt 0:00:30]} 5. Bc4 {[%emt 0:03:00]} a6 {[%emt 0:12:30]} 6. d3 {[%emt 0:13:30]} d6 {[%emt 0:11:30]} 7. O-O {[%emt 0:05:30]} Nf6 {[%emt 0:06:30]} 8. Qe1 {[%emt 0:08:30]} O-O {[%emt 0:19:30]} 9. Qh4 {[%emt 0:14:30]} b5 {[%emt 0:08:30]} 10. Bb3 $1 {[%emt 0:03:30]} b4 {[%emt 0:08:30]} 11. Ne2 {[%emt 0:10:30]} Bg4 {[%emt 0:05:47]} 12. Be3 {[%emt 0:08:30]} (12. f5 $1 $16) 12... Na5 {[%emt 0:04:32]} (12... e6 $11 {remains equal.}) 13. Ba4 {[%emt 0:07:53]} Rb8 {[%emt 0:04:40]} 14. Rab1 $11 {[%emt 0:05:24]} (14. f5 $16) 14... Bh5 {[%emt 0:08:05]} 15. f5 {[%emt 0:03:59]} gxf5 {[%emt 0:02:36]} 16. exf5 {[%emt 0:00:28]} Qc8 {[%emt 0:01:32]} 17. Ng3 {[%emt 0:01:18]} Bxf3 {[%emt 0:00:18]} 18. Rxf3 {[%emt 0:00:37]} Kh8 {[%emt 0:00:50]} 19. Nh5 {[%emt 0:06:03]} Rg8 {[%emt 0:00:07]} 20. Rbf1 {[%emt 0:00:35]} Nxh5 {[%emt 0:00:57]} 21. Qxh5 {[%emt 0:00:18]} Bxb2 {[%emt 0:00:32]} 22. Rh3 {[%emt 0:01:06]} Rg7 {[%emt 0:00:02]} 23. Bh6 {[%emt 0:00:35]} Qg8 {[%emt 0:00:06]} 24. Bxg7+ {[%emt 0:00:44]} Bxg7 {[%emt 0:01:00]} 25. Rg3 {[%emt 0:00:35]} Qf8 {[%emt 0:00:53]} 26. Rf4 {[%emt 0:00:36]} Rb6 {[%emt 0:00:19]} 27. Rfg4 {[%emt 0:00:47]} Bd4+ {[%emt 0:00:17]} 28. Kh1 {[%emt 0:00:24]} d5 {[%emt 0:00:15]} 29. Qg5 {[%emt 0:00:32]} h6 {[%emt 0:00:11]} 30. Qf4 {[%emt 0:00:33]} e5 {[%emt 0:00:35]} 31. Qf3 {[%emt 0:00:30]} Rf6 {[%emt 0:00:33]} 32. Bd7 {[%emt 0:00:26]} Rd6 {[%emt 0:00:22]} 33. f6 {[%emt 0:00:31]} e4 {[%emt 0:00:16]} 34. Rg8+ {[%emt 0:00:21]} Qxg8 {[%emt 0:00:51]} 35. Rxg8+ {[%emt 0:00:06]} 1-0

[Event "27th CRO-chT 1A-Men 2018"]
[Site "Biograd"]
[Date "2018.09.08"]
[Round "1.23"]
[White "Brnas, Augustin"]
[Black "Medak, Bojan"]
[Result "1-0"]
[ECO "B07"]
[WhiteElo "2190"]
[BlackElo "2367"]
[Annotator "NA"]
[PlyCount "63"]
[EventDate "2018.09.08"]
[EventType "team-tourn"]
[EventCountry "CRO"]
[SourceTitle "playchess.com"]
[Source "ChessBase"]
[SourceQuality "1"]
[TimeControl "40/5400+30:1800+30"]

1. e4 {[%emt 0:00:30]} d6 {[%emt 0:00:30]} 2. d4 {[%emt 0:02:30]} Nf6 {[%emt 0:00:30]} 3. Nc3 {[%emt 0:01:30]} g6 {[%emt 0:00:30]} 4. Bg5 {[%emt 0:04:30]} Bg7 {[%emt 0:00:30]} 5. Qd2 {[%emt 0:01:30]} h6 {[%emt 0:01:30]} 6. Bf4 {[%emt 0:03:30]} g5 {[%emt 0:01:30]} 7. Bg3 {[%emt 0:06:30]} Nh5 {[%emt 0:01:30]} 8. Nge2 {[%emt 0:08:30]} Nc6 {[%emt 0:03:30]} 9. d5 {[%emt 0:07:30]} Ne5 {[%emt 0:04:30]} 10. Nd4 {[%emt 0:04:30]} a6 {[%emt 0:09:30]} 11. Be2 {[%emt 0:01:30]} Nxg3 {[%emt 0:00:30]} 12. hxg3 {[%emt 0:00:00]} c5 {[%emt 0:01:30]} 13. Nf5 {[%emt 0:03:00]} Bxf5 {[%emt 0:01:30]} 14. exf5 {[%emt 0:00:30]} Qa5 {[%emt 0:07:30]} 15. f4 $11 {[%emt 0:14:30]} Nd7 {[%emt 0:04:30]} 16. O-O-O {[%emt 0:09:30]} O-O-O {[%emt 0:15:30]} 17. Kb1 {[%emt 0:00:30]} Bxc3 {[%emt 0:03:30]} 18. bxc3 {[%emt 0:01:30]} Rdg8 {[%emt 0:05:30]} 19. fxg5 {[%emt 0:15:41]} hxg5 {[%emt 0:01:30]} 20. Rxh8 {[%emt 0:00:20]} Rxh8 {[%emt 0:00:30]} 21. Qxg5 {[%emt 0:00:12]} Qxc3 {[%emt 0:10:30]} 22. Qxe7 {[%emt 0:05:32]} Qxg3 {[%emt 0:02:30]} 23. Bf3 {[%emt 0:02:42]} Rh4 {[%emt 0:03:56]} 24. a3 {[%emt 0:00:11]} f6 {[%emt 0:03:03]} 25. Re1 {[%emt 0:00:06]} Kc7 {[%emt 0:01:31]} 26. Re6 {[%emt 0:00:00]} Rh1+ {[%emt 0:00:00]} 27. Ka2 {[%emt 0:01:50]} Qf4 {[%emt 0:00:08]} 28. Be2 {[%emt 0:02:00]} Qd4 {[%emt 0:05:08]} 29. Qxd6+ {[%emt 0:02:49]} Kd8 {[%emt 0:00:04]} 30. c4 {[%emt 0:00:06]} Ra1+ {[%emt 0:00:23]} 31. Kb3 {[%emt 0:00:04]} b5 {[%emt 0:02:16]} 32. Qe7+ {[%emt 0:00:10]} 1-0